bitfinex-derivatives/quotes_BTCF0:USTF0_20260106
["timestamp","ask_amount","ask_price","bid_price","bid_amount"]
[1767714552389,0.09080424,93639.0,93603.0,0.09985913]
[1767714552799,0.23298755,93640.0,93602.0,0.09088]
[1767714552800,0.18670605,93627.0,93602.0,0.09088]
[1767714553000,0.13708574,93620.0,93602.0,0.09088]
[1767714553198,0.09080424,93626.0,93602.0,0.09088]
[1767714554303,0.13708574,93620.0,93602.0,0.09088]
[1767714554507,0.09080424,93626.0,93602.0,0.09088]
[1767714554804,0.09590181,93623.0,93602.0,0.09088]
[1767714555103,0.13708574,93630.0,93603.0,0.09058961]
[1767714555104,0.22788998,93630.0,93603.0,0.09058961]
[1767714555296,0.09080424,93629.0,93603.0,0.09058961]
[1767714555904,0.09080424,93629.0,93602.0,0.09088]
[1767714555905,0.09080424,93619.0,93602.0,0.09088]
[1767714556706,0.09080424,93618.0,93598.0,0.1217]
[1767714556897,0.09080424,93618.0,93599.0,0.09088]
[1767714557298,0.09080424,93617.0,93600.0,0.09088]
[1767714557499,0.09080424,93617.0,93601.0,0.09088]
[1767714557809,0.13708574,93610.0,93602.0,0.09088]
[1767714557992,0.09080424,93617.0,93602.0,0.09088]
[1767714558200,0.09080424,93615.0,93602.0,0.09088]
[1767714558510,0.09080424,93611.0,93601.0,0.09088]
[1767714558707,0.09590181,93618.0,93600.0,0.09088]
[1767714558901,0.13708574,93610.0,93600.0,0.09088]
[1767714560310,0.09080424,93617.0,93587.0,0.09467407]
[1767714560311,0.09080424,93615.0,93596.0,0.09088]
[1767714560707,0.09080424,93625.0,93598.0,0.09467407]
[1767714560908,0.09080424,93625.0,93599.0,0.09347322]
[1767714561510,0.09080424,93625.0,93600.0,0.09420345]
[1767714562106,0.09080424,93625.0,93599.0,0.09467407]
[1767714562107,0.09080424,93619.0,93596.0,0.09088]
[1767714562312,0.09080424,93618.0,93596.0,0.09088]
[1767714562508,0.09080424,93609.0,93597.0,0.09088]
[1767714562703,0.09080424,93609.0,93598.0,0.09088]
[1767714562903,0.09080424,93615.0,93598.0,0.09088]
[1767714563111,0.13708574,93620.0,93598.0,0.09088]
[1767714563602,0.09080424,93609.0,93598.0,0.09088]
[1767714563798,0.13708574,93610.0,93586.0,0.1217]
[1767714563799,0.09080424,93607.0,93592.0,0.09088]
[1767714564013,0.13708574,93600.0,93592.0,0.09088]
[1767714564600,0.09080424,93607.0,93592.0,0.09088]
[1767714565201,0.09080424,93605.0,93592.0,0.09088]
[1767714565408,0.22788998,93602.0,93592.0,0.09088]
[1767714565912,0.22788998,93602.0,93586.0,0.1217]
[1767714566213,0.22788998,93602.0,93584.0,0.09088]
[1767714566214,0.09080424,93597.0,93584.0,0.09088]
[1767714566405,0.13708574,93590.0,93582.0,0.09088]
[1767714566605,0.13708574,93590.0,93580.0,0.09088]
[1767714568620,0.09080424,93599.0,93580.0,0.09088]
[1767714568808,0.02241625,93598.0,93580.0,0.09088]
[1767714569108,0.1070272,93599.0,93580.0,0.09088]
[1767714569509,0.09080424,93598.0,93580.0,0.09088]
[1767714569711,0.01622296,93599.0,93580.0,0.09088]
[1767714570015,0.13708574,93600.0,93580.0,0.09088]
[1767714570216,0.02241432,93599.0,93580.0,0.09088]
[1767714570412,0.15386466,93600.0,93581.0,0.09802197]
[1767714570413,0.01677892,93600.0,93581.0,0.09802197]
[1767714570618,0.09080424,93605.0,93581.0,0.09802197]
[1767714570815,0.10740561,93605.0,93581.0,0.09802197]
[1767714571014,0.01660137,93605.0,93583.0,0.09802197]
[1767714571203,0.09080424,93609.0,93583.0,0.09802197]
[1767714571407,0.11679854,93608.0,93583.0,0.09802197]
[1767714571609,0.09437993,93608.0,93583.0,0.09802197]
[1767714571804,0.09437993,93608.0,93582.0,0.09467407]
[1767714571805,0.06009413,93614.0,93585.0,0.09634066]
[1767714572014,0.06009413,93614.0,93584.0,0.49341435]
[1767714572015,0.02250574,93613.0,93588.0,0.09341435]
[1767714572217,0.01611838,93616.0,93597.0,0.09341435]
[1767714572421,0.17619816,93626.0,93589.0,0.86892]
[1767714572422,0.23146567,93630.0,93601.0,0.09341435]
[1767714572605,0.23146567,93630.0,93589.0,0.86892]
[1767714572606,0.09437993,93619.0,93602.0,0.09088]
[1767714572919,0.23146567,93612.0,93603.0,0.09088]
[1767714573110,0.09457435,93619.0,93604.0,0.09088]
[1767714573111,0.09437993,93619.0,93604.0,0.09088]
[1767714573715,0.09437993,93619.0,93593.0,0.09341435]
[1767714573913,0.13708574,93610.0,93594.0,0.09088]
[1767714574614,0.09437993,93616.0,93594.0,0.09088]
[1767714575524,0.01639946,93623.0,93596.0,0.09634066]
[1767714575723,0.09437993,93631.0,93598.0,0.09634066]
[1767714576017,0.09437993,93629.0,93602.0,0.09341435]
[1767714576207,0.09437993,93636.0,93604.0,0.09341435]
[1767714576407,0.09437993,93636.0,93591.0,0.19348]
[1767714576408,0.09437993,93636.0,93609.0,0.09341435]
[1767714577210,0.0164139,93637.0,93611.0,0.09634066]
[1767714577409,0.19713712,93640.0,93612.0,0.09341435]
[1767714577622,0.09437993,93639.0,93613.0,0.09341435]
[1767714578223,0.11103217,93639.0,93613.0,0.09341435]
[1767714578428,0.01665224,93639.0,93617.0,0.09341435]
[1767714578621,0.19713712,93640.0,93618.0,0.09088]
[1767714578813,0.06005138,93640.0,93618.0,0.09088]
[1767714579019,0.09437993,93646.0,93618.0,0.09088]
[1767714579424,0.09437993,93645.0,93619.0,0.09341435]
[1767714579824,0.11097602,93645.0,93619.0,0.09341435]
[1767714580125,0.13708574,93640.0,93619.0,0.09341435]
[1767714581234,0.09437993,93629.0,93620.0,0.09088]
[1767714581527,0.09437993,93629.0,93603.0,0.09341435]
[1767714581727,0.09437993,93629.0,93609.0,0.86916]
[1767714581920,0.09437993,93629.0,93605.0,0.09341435]
[1767714582112,0.09437993,93629.0,93606.0,0.96004]
[1767714582320,0.09437993,93629.0,93607.0,0.09088]
[1767714583522,0.01659609,93645.0,93607.0,0.09088]
[1767714583523,0.09437993,93637.0,93608.0,0.09341435]
[1767714583740,0.09437993,93637.0,93609.0,0.09341435]
[1767714584638,0.09437993,93637.0,93610.0,0.09341435]
[1767714584830,0.09437993,93637.0,93611.0,0.09341435]
[1767714585331,0.09437993,93637.0,93612.0,0.09341435]
[1767714585839,0.09437993,93637.0,93614.0,0.09341435]
[1767714588939,0.01659609,93645.0,93617.0,0.09634066]
[1767714589125,0.01659609,93645.0,93616.0,0.09341435]
[1767714589126,0.09437993,93652.0,93622.0,0.09341435]
[1767714589332,0.09437993,93652.0,93626.0,0.09341435]
[1767714589531,0.09437993,93652.0,93628.0,0.09341435]
[1767714589730,0.09437993,93652.0,93630.0,0.09341435]
[1767714590930,0.11144101,93652.0,93630.0,0.09341435]
[1767714591439,0.01706108,93652.0,93631.0,0.09341435]
[1767714591639,0.06066375,93659.0,93632.0,0.09341435]
[1767714591831,0.15504368,93659.0,93632.0,0.09341435]
[1767714592034,0.09437993,93658.0,93632.0,0.09341435]
[1767714592231,0.1112819,93658.0,93633.0,0.09341435]
[1767714593239,0.1112819,93658.0,93635.0,0.09341435]
[1767714593440,0.09457435,93657.0,93629.0,0.09088]
[1767714593736,0.1112819,93658.0,93621.0,0.09341435]
[1767714593737,0.09437993,93653.0,93621.0,0.09341435]
[1767714593937,0.09437993,93653.0,93623.0,0.09341435]
[1767714594136,0.09437993,93652.0,93624.0,0.96028]
[1767714594328,0.09437993,93652.0,93625.0,1.05373435]
[1767714594844,0.01690197,93658.0,93620.0,0.09634066]
[1767714594845,0.09437993,93649.0,93620.0,0.09634066]
[1767714595139,0.09437993,93649.0,93619.0,0.09341435]
[1767714595140,0.09437993,93645.0,93626.0,0.09088]
[1767714595745,0.09457435,93638.0,93615.0,0.1217]
[1767714595932,0.09437993,93636.0,93616.0,0.96032]
[1767714596241,0.50821288,93658.0,93617.0,0.09088]
[1767714596242,0.09437993,93634.0,93617.0,0.09088]
[1767714596743,0.09437993,93633.0,93606.0,0.09341435]
[1767714597035,0.09437993,93633.0,93611.0,0.86944]
[1767714597036,0.09437993,93632.0,93611.0,0.86944]
[1767714597238,0.18895428,93639.0,93612.0,0.09341435]
[1767714597442,0.09088,93645.0,93611.0,0.86944]
[1767714597443,0.09457435,93637.0,93611.0,0.86944]
[1767714597640,0.09437993,93636.0,93612.0,0.09341435]
[1767714598940,0.09437993,93643.0,93613.0,0.09634066]
[1767714599143,0.09437993,93643.0,93615.0,0.09634066]
[1767714599346,0.09437993,93643.0,93616.0,0.09341435]
[1767714599548,0.09457435,93650.0,93619.0,0.09634066]
[1767714599847,0.05877629,93650.0,93622.0,0.09341435]
[1767714600040,0.09437993,93651.0,93624.0,0.09341435]
[1767714600238,0.09437993,93650.0,93624.0,0.09341435]
[1767714600439,0.09437993,93650.0,93626.0,0.09341435]
[1767714600638,0.09437993,93650.0,93628.0,0.09341435]
[1767714601640,0.18370175,93646.0,93609.0,0.09143572]
[1767714601840,0.01733288,93658.0,93613.0,0.09143572]
[1767714601841,0.09327026,93644.0,93613.0,0.09143572]
[1767714602047,0.09327026,93643.0,93615.0,0.09143572]
[1767714602241,0.09043149,93641.0,93612.0,0.09355373]
[1767714602547,0.09043149,93641.0,93609.0,0.09143572]
[1767714602548,0.09327026,93639.0,93613.0,0.96052]
[1767714602851,0.09327026,93652.0,93619.0,0.09143572]
[1767714603042,0.09327026,93652.0,93620.0,0.09355373]
[1767714603248,0.09327026,93652.0,93624.0,0.09143572]
[1767714603448,0.09327026,93652.0,93626.0,0.09143572]
[1767714603642,0.09327026,93652.0,93629.0,0.09143572]
[1767714604035,0.09327026,93652.0,93625.0,0.09088]
[1767714604236,0.09208461,93649.0,93625.0,0.09088]
[1767714604551,0.09208461,93648.0,93625.0,0.09088]
[1767714605351,0.09208461,93641.0,93601.0,0.21551839]
[1767714605542,0.09208461,93639.0,93602.0,0.60428]
[1767714605743,0.09208461,93637.0,93602.0,0.69809839]
[1767714605949,0.09208461,93635.0,93604.0,0.09412459]
[1767714606146,0.09208461,93635.0,93605.0,0.09381839]
[1767714606353,0.09208461,93635.0,93606.0,0.09381839]
[1767714606649,0.09208461,93635.0,93608.0,0.09381839]
[1767714606857,0.09208461,93635.0,93609.0,0.09381839]
[1767714607561,0.09208461,93643.0,93612.0,0.09381839]
[1767714607747,0.09208461,93643.0,93613.0,0.09084]
[1767714608048,0.09781623,93641.0,93613.0,0.09084]
[1767714608251,0.09208461,93642.0,93593.0,0.010688]
[1767714608252,0.09781623,93637.0,93593.0,0.09381839]
[1767714608452,0.18990084,93625.0,93594.0,0.4686]
[1767714608655,0.09208461,93620.0,93595.0,0.18794298]
[1767714608853,0.09208461,93620.0,93596.0,0.09381839]
[1767714609564,0.09208461,93620.0,93594.0,0.4686]
[1767714610262,0.09208461,93620.0,93594.0,0.56241839]
[1767714611056,0.09208461,93629.0,93597.0,0.09412459]
[1767714611359,0.09208461,93629.0,93598.0,0.09381839]
[1767714612055,0.09208461,93626.0,93598.0,0.09381839]
[1767714612360,0.09781623,93621.0,93599.0,0.09088]
[1767714612554,0.09208461,93618.0,93600.0,0.09088]
[1767714612859,0.09781623,93619.0,93601.0,0.09088]
[1767714612860,0.11502895,93617.0,93601.0,0.09088]
[1767714613046,0.02294434,93616.0,93602.0,0.09088]
[1767714613252,0.09208461,93617.0,93602.0,0.09088]
[1767714613447,0.09084,93633.0,93604.0,0.09381839]
[1767714613448,0.18990084,93633.0,93604.0,0.09381839]
[1767714613653,0.02293668,93632.0,93608.0,0.09412459]
[1767714613852,0.09208461,93639.0,93609.0,0.09381839]
[1767714614055,0.09208461,93639.0,93610.0,0.09381839]
[1767714615556,0.09781623,93635.0,93603.0,0.09381839]
[1767714615758,0.09208461,93632.0,93596.0,0.09381839]
[1767714615962,0.09208461,93630.0,93602.0,0.25584]
[1767714616165,0.09208461,93627.0,93602.0,0.25584]
[1767714616365,0.09208461,93627.0,93603.0,0.09381839]
[1767714619561,0.09208461,93627.0,93602.0,0.25584]
[1767714619562,0.09208461,93641.0,93607.0,0.09381839]
[1767714619759,0.09208461,93641.0,93614.0,0.09381839]
[1767714619964,0.09208461,93641.0,93616.0,0.09381839]
[1767714620161,0.05733068,93648.0,93620.0,0.09412459]
[1767714620162,0.09208461,93648.0,93620.0,0.09412459]
[1767714620467,0.09208461,93656.0,93631.0,0.09381839]
[1767714620665,0.09208461,93656.0,93632.0,0.09088]
[1767714620962,0.09208461,93656.0,93633.0,0.09381839]
[1767714621558,0.01722117,93658.0,93634.0,0.09412459]
[1767714621861,0.09208461,93664.0,93637.0,0.18794298]
[1767714622465,0.09208461,93664.0,93638.0,0.09381839]
[1767714622665,0.09208461,93664.0,93639.0,0.09381839]
[1767714623561,0.09781623,93676.0,93642.0,0.09412459]
[1767714623768,0.09781623,93676.0,93643.0,0.09088]
[1767714624156,0.11498301,93676.0,93643.0,0.09088]
[1767714625067,0.11498301,93676.0,93644.0,0.09088]
[1767714625068,0.09781623,93675.0,93644.0,0.09088]
[1767714625568,0.09208461,93674.0,93644.0,0.09088]
[1767714625760,0.09208461,93672.0,93644.0,0.09088]
[1767714625958,0.09781623,93671.0,93644.0,0.09088]
[1767714626169,0.09208461,93670.0,93644.0,0.09088]
[1767714626369,0.09208461,93668.0,93644.0,0.09088]
[1767714626869,0.4,93674.0,93644.0,0.09088]
[1767714626870,0.09208461,93666.0,93644.0,0.09088]
[1767714627170,0.09208461,93664.0,93644.0,0.09088]
[1767714627470,0.09781623,93663.0,93644.0,0.09088]
[1767714627769,0.09208461,93661.0,93644.0,0.09088]
[1767714631165,0.05992633,93664.0,93644.0,0.09088]
[1767714631366,0.09208461,93668.0,93644.0,0.09088]
[1767714631559,0.20901869,93676.0,93646.0,0.09089178]
[1767714631764,0.09904966,93671.0,93644.0,0.09088]
[1767714631972,0.09280225,93670.0,93644.0,0.09088]
[1767714632173,0.09280225,93668.0,93644.0,0.09088]
[1767714632380,0.09280225,93666.0,93644.0,0.09088]
[1767714632569,0.09280225,93665.0,93639.0,0.09089178]
[1767714632767,0.09280225,93665.0,93640.0,0.09084]
[1767714632768,0.09904966,93664.0,93640.0,0.09084]
[1767714632969,0.09280225,93663.0,93640.0,0.09084]
[1767714634276,0.19185191,93663.0,93639.0,0.09089178]
[1767714634464,0.09280225,93645.0,93629.0,0.09084]
[1767714634669,0.19185191,93653.0,93630.0,0.09084]
[1767714634869,0.19185191,93653.0,93618.0,0.51952]
[1767714634870,0.09084,93662.0,93634.0,0.09089178]
[1767714635066,0.09084,93662.0,93637.0,0.09089178]
[1767714636167,0.09904966,93660.0,93634.0,0.09084]
[1767714636377,0.19185191,93659.0,93634.0,0.09084]
[1767714636575,0.09280225,93658.0,93634.0,0.09084]
[1767714637973,0.19185191,93652.0,93629.0,0.0021361]
[1767714638174,0.19185191,93645.0,93630.0,0.09084]
[1767714638376,0.09280225,93642.0,93627.0,0.09084]
[1767714638574,0.09084,93662.0,93610.0,0.18971538]
[1767714638575,0.09280225,93640.0,93610.0,0.18971538]
[1767714638878,0.09280225,93640.0,93612.0,0.09089178]
[1767714639078,0.09280225,93640.0,93613.0,0.09089178]
[1767714639273,0.09280225,93639.0,93613.0,0.09089178]
[1767714639477,0.09280225,93638.0,93614.0,0.09084]
[1767714639671,0.19185191,93638.0,93614.0,0.09084]
[1767714639892,0.09904966,93636.0,93606.0,0.18971538]
[1767714640177,0.09280225,93634.0,93607.0,0.09084]
[1767714640479,0.09084,93651.0,93608.0,0.09084]
[1767714640480,0.09280225,93632.0,93608.0,0.09084]
[1767714641276,0.11600097,93631.0,93608.0,0.09084]
[1767714641469,0.09280225,93631.0,93608.0,0.09084]
[1767714641665,0.02319864,93630.0,93608.0,0.18173178]
[1767714641979,0.09904966,93639.0,93608.0,0.18173178]
[1767714641980,0.02319864,93629.0,93609.0,0.09089178]
[1767714642174,0.02320161,93628.0,93609.0,0.09089178]
[1767714642382,0.09280225,93638.0,93609.0,0.09089178]
[1767714642579,0.11600385,93637.0,93609.0,0.09089178]
[1767714642877,0.0232016,93636.0,93609.0,0.09089178]
[1767714644178,0.09904966,93639.0,93610.0,0.09084]
[1767714644179,0.09280225,93628.0,93610.0,0.09084]
[1767714644479,0.09084,93639.0,93603.0,0.09084]
[1767714644480,0.09280225,93624.0,93603.0,0.09084]
[1767714644782,0.09280225,93621.0,93604.0,0.09084]
[1767714644974,0.09280225,93619.0,93602.0,0.09084]
[1767714645173,0.11600603,93618.0,93602.0,0.09084]
[1767714645372,0.02320378,93617.0,93602.0,0.09084]
[1767714645577,0.09280225,93626.0,93602.0,0.09084]
[1767714645878,0.18988966,93627.0,93602.0,0.09084]
[1767714645879,0.11599974,93625.0,93602.0,0.09084]
[1767714646076,0.09280225,93623.0,93602.0,0.09084]
[1767714646273,0.09280225,93621.0,93602.0,0.09084]
[1767714646475,0.16036856,93620.0,93602.0,0.09084]
[1767714646669,0.13717107,93612.0,93588.0,0.0988236]
[1767714646879,0.13717107,93612.0,93590.0,0.18971538]
[1767714647075,0.09280225,93618.0,93591.0,0.18971538]
[1767714647273,0.11598753,93617.0,93591.0,0.18971538]
[1767714647473,0.02318528,93616.0,93591.0,0.18971538]
[1767714647673,0.02318528,93615.0,93591.0,0.18971538]
[1767714647874,0.02318528,93614.0,93591.0,0.18971538]
[1767714648180,0.09280225,93617.0,93591.0,0.18971538]
[1767714648376,0.09280225,93617.0,93592.0,0.09089178]
[1767714648573,0.13717107,93610.0,93592.0,0.18971538]
[1767714649082,0.13717107,93610.0,93596.0,0.09089178]
[1767714649273,0.13717107,93610.0,93589.0,0.1897036]
[1767714649472,0.09904966,93619.0,93594.0,0.09089178]
[1767714649674,0.02317268,93618.0,93594.0,0.09089178]
[1767714649877,0.09280225,93616.0,93589.0,0.09088]
[1767714650080,0.09280225,93616.0,93590.0,0.09089178]
[1767714650278,0.13717107,93610.0,93591.0,0.18971538]
[1767714651381,0.13717107,93610.0,93592.0,0.18971538]
[1767714654387,0.13717107,93610.0,93594.0,0.0988236]
[1767714654682,0.13717107,93610.0,93589.0,0.09088]
[1767714654683,0.22997332,93610.0,93589.0,0.87128]
[1767714654893,0.13717107,93600.0,93595.0,0.09088]
[1767714655088,0.32902298,93610.0,93595.0,0.09088]
[1767714655287,0.32902298,93610.0,93586.0,0.00011583]
[1767714655288,0.09904966,93608.0,93586.0,0.00011583]
[1767714655482,0.13717107,93600.0,93587.0,0.09088]
[1767714655687,0.09280225,93599.0,93587.0,0.09088]
[1767714655882,0.09280225,93598.0,93579.0,0.09088]
[1767714656081,0.13717107,93590.0,93579.0,0.09088]
[1767714656282,0.1547901,93590.0,93579.0,0.09088]
[1767714658678,0.01761903,93590.0,93579.0,0.09088]
[1767714658883,0.13717107,93590.0,93579.0,0.09088]
[1767714659687,9.304e-05,93589.0,93579.0,0.09088]
[1767714659890,0.00010679,93588.0,93579.0,0.09088]
[1767714660081,0.13717107,93590.0,93579.0,0.09088]
[1767714660082,0.00011583,93587.0,93579.0,0.09088]
[1767714660689,0.15459817,93590.0,93574.0,0.09088]
[1767714660882,0.15459817,93590.0,93569.0,0.09302925]
[1767714661190,0.15459817,93590.0,93572.0,0.09088]
[1767714661393,0.0174271,93590.0,93573.0,0.09091503]
[1767714661684,0.09775239,93606.0,93573.0,0.09091503]
[1767714661892,0.11402432,93605.0,93573.0,0.09091503]
[1767714662091,0.02314432,93604.0,93573.0,0.09091503]
[1767714662285,0.09088,93605.0,93573.0,0.09091503]
[1767714662286,0.0990778,93628.0,93586.0,0.09091503]
[1767714662481,0.0990778,93628.0,93573.0,0.01069]
[1767714662482,0.0990778,93624.0,93588.0,0.09091503]
[1767714662683,0.13717107,93620.0,93590.0,0.09091503]
[1767714662883,0.02371866,93619.0,93593.0,0.18986491]
[1767714663095,0.02371866,93619.0,93595.0,0.18986491]
[1767714663592,0.23492346,93610.0,93591.0,0.87172]
[1767714663891,0.23492346,93610.0,93596.0,0.09088]
[1767714664097,0.09088,93617.0,93596.0,0.28074491]
[1767714664392,0.02374087,93616.0,93597.0,0.09091503]
[1767714664686,0.09775239,93625.0,93600.0,0.18986491]
[1767714664888,0.02374494,93624.0,93603.0,0.09091503]
[1767714665087,0.02374494,93623.0,93605.0,0.18986491]
[1767714665287,0.02374494,93622.0,93605.0,0.18986491]
[1767714665591,0.01746216,93628.0,93609.0,0.09091503]
[1767714665796,0.05867494,93643.0,93619.0,0.18986491]
[1767714665988,0.05867494,93643.0,93600.0,0.13717107]
[1767714665989,0.09775239,93649.0,93625.0,0.09091503]
[1767714666587,0.09775239,93639.0,93620.0,0.09088]
[1767714667998,0.09775239,93637.0,93620.0,0.09088]
[1767714668386,0.09775239,93637.0,93609.0,0.09091503]
[1767714668692,0.09775239,93629.0,93610.0,0.09088]
[1767714668894,0.09775239,93636.0,93612.0,0.09091503]
[1767714669191,0.02377924,93635.0,93616.0,0.09894988]
[1767714669389,0.09088,93638.0,93617.0,0.09091503]
[1767714669591,0.25584585,93643.0,93618.0,0.09091503]
[1767714669787,0.09088,93642.0,93620.0,0.18986491]
[1767714670989,0.09088,93642.0,93620.0,0.09091503]
[1767714671189,0.09775239,93640.0,93613.0,0.09894988]
[1767714671389,0.09775239,93639.0,93613.0,0.09894988]
[1767714671691,0.09088,93642.0,93614.0,0.09091503]
[1767714671890,0.09088,93642.0,93615.0,0.09894988]
[1767714672191,0.13717107,93630.0,93597.0,0.18986491]
[1767714672494,0.19683019,93619.0,93591.0,0.09894988]
[1767714672794,0.09775239,93617.0,93592.0,0.09088]
[1767714673187,0.09775239,93615.0,93592.0,0.09088]
[1767714673388,0.02375502,93614.0,93590.0,0.09091503]
[1767714673599,0.12150741,93614.0,93591.0,0.09088]
[1767714673800,0.09775239,93614.0,93591.0,0.09088]
[1767714674294,0.02375435,93613.0,93590.0,0.09091503]
[1767714674498,0.02375435,93612.0,93591.0,0.09088]
[1767714674697,0.09775239,93614.0,93591.0,0.09088]
[1767714674900,0.02375278,93613.0,93591.0,0.09088]
[1767714675099,0.02375278,93612.0,93591.0,0.09088]
[1767714675398,0.09775239,93609.0,93582.0,0.09091503]
[1767714675701,0.13717107,93600.0,93582.0,0.09091503]
[1767714675899,0.19683019,93608.0,93583.0,0.09088]
[1767714676090,0.02374805,93607.0,93583.0,0.09088]
[1767714676292,0.19683019,93608.0,93583.0,0.09088]
[1767714676602,0.0990778,93605.0,93583.0,0.09088]
[1767714676900,0.09775239,93604.0,93583.0,0.09088]
[1767714677885,0.09775239,93604.0,93576.0,0.09091503]
[1767714678090,0.09775239,93604.0,93577.0,0.09088]
[1767714678291,0.09775239,93604.0,93577.0,0.18179503]
[1767714678493,0.09775239,93604.0,93578.0,0.09091503]
[1767714679609,0.15655168,93604.0,93579.0,0.09088]
[1767714680199,0.15655168,93604.0,93579.0,0.28074491]
[1767714680599,0.09775239,93596.0,93579.0,0.09088]
[1767714681799,0.19683019,93589.0,93569.0,0.00213747]
[1767714681990,0.09775239,93589.0,93569.0,0.00213747]
[1767714686806,0.09775239,93594.0,93569.0,0.19200238]
[1767714687008,0.13717107,93600.0,93569.0,0.19200238]
[1767714687009,0.19683019,93592.0,93569.0,0.0930525]
[1767714688095,0.09775239,93592.0,93569.0,0.19200238]
[1767714688296,0.09775239,93592.0,93569.0,0.0930525]
[1767714689398,0.15619944,93606.0,93579.0,0.09894988]
[1767714689597,0.02368526,93605.0,93582.0,0.18986491]
[1767714689797,0.02368526,93604.0,93585.0,0.09091503]
[1767714689998,0.02368526,93603.0,93586.0,0.28074491]
[1767714690194,0.14967342,93609.0,93586.0,0.28074491]
[1767714690397,0.02368794,93608.0,93586.0,0.28074491]
[1767714690597,0.02368794,93607.0,93586.0,0.28074491]
[1767714690798,0.02368794,93606.0,93586.0,0.28074491]
[1767714691002,0.02368794,93605.0,93586.0,0.28074491]
[1767714691302,0.02368794,93604.0,93586.0,0.09088]
[1767714691510,0.09207617,93606.0,93586.0,0.09088]
[1767714691711,0.02368826,93605.0,93586.0,0.09088]
[1767714691900,0.09207617,93597.0,93571.0,0.09785894]
[1767714692100,0.09207617,93595.0,93573.0,0.09088]
[1767714692297,0.09564286,93594.0,93573.0,0.09088]
[1767714692500,0.18771903,93589.0,93569.0,0.00213747]
[1767714692705,0.18751581,93621.0,93576.0,0.09785894]
[1767714693010,0.09207617,93617.0,93581.0,0.09921467]
[1767714693196,0.09564286,93613.0,93586.0,0.09785894]
[1767714693400,0.02370642,93612.0,93591.0,0.19707361]
[1767714693599,0.02370642,93611.0,93592.0,0.09088]
[1767714693811,0.09564286,93613.0,93592.0,0.09088]
[1767714694107,0.09564286,93610.0,93592.0,0.09088]
[1767714694420,0.18771903,93610.0,93592.0,0.09088]
[1767714694602,0.18771903,93610.0,93584.0,0.19707361]
[1767714694603,0.18771903,93605.0,93590.0,0.09088]
[1767714695306,0.09564286,93605.0,93580.0,0.09785894]
[1767714695510,0.09564286,93605.0,93581.0,0.09088]
[1767714698608,0.09564286,93604.0,93581.0,0.09088]
[1767714698812,0.09564286,93604.0,93581.0,0.28795361]
[1767714699014,0.3248901,93610.0,93582.0,0.19707361]
[1767714699313,0.09564286,93605.0,93582.0,0.19707361]
[1767714699613,0.09564286,93601.0,93576.0,0.09921467]
[1767714699920,0.09564286,93601.0,93577.0,0.09088]
[1767714700601,0.09564286,93601.0,93577.0,0.18873894]
[1767714700810,0.09564286,93601.0,93577.0,0.28795361]
[1767714701212,0.09564286,93607.0,93581.0,0.19707361]
[1767714701415,0.09564286,93607.0,93577.0,0.09088]
[1767714701416,0.02375073,93606.0,93584.0,0.19707361]
[1767714701619,0.02375073,93605.0,93584.0,0.19707361]
[1767714701809,0.02375073,93604.0,93584.0,0.19707361]
[1767714702008,0.02375073,93603.0,93584.0,0.19707361]
[1767714702209,0.02375073,93602.0,93584.0,0.19707361]
[1767714702508,0.02375073,93601.0,93584.0,0.19707361]
[1767714702710,0.02375073,93600.0,93584.0,0.19707361]
[1767714702909,0.09564286,93607.0,93584.0,0.19707361]
[1767714703214,0.0237707,93606.0,93584.0,0.19707361]
[1767714703413,0.0237707,93605.0,93584.0,0.19707361]
[1767714703614,0.0237707,93604.0,93584.0,0.19707361]
[1767714703814,0.0237707,93604.0,93577.0,0.09088]
[1767714703815,0.09207617,93595.0,93570.0,0.09785894]
[1767714704117,0.09564286,93589.0,93571.0,0.09088]
[1767714704308,0.0237707,93588.0,93571.0,0.09088]
[1767714704508,0.09564286,93589.0,93571.0,0.09088]
[1767714704509,0.02376874,93587.0,93571.0,0.09088]
[1767714704811,0.09564286,93589.0,93571.0,0.09088]
[1767714705011,0.02376883,93588.0,93571.0,0.09088]
[1767714705216,0.02376883,93587.0,93571.0,0.09088]
[1767714705415,0.09564286,93589.0,93571.0,0.09088]
[1767714705618,0.09577285,93587.0,93571.0,0.09088]
[1767714705815,0.02376978,93586.0,93571.0,0.09088]
[1767714706118,0.02376978,93585.0,93571.0,0.09088]
[1767714706318,0.19306049,93594.0,93571.0,0.09088]
[1767714706612,0.02376938,93593.0,93571.0,0.09088]
[1767714706816,0.02376938,93592.0,93571.0,0.09088]
[1767714707019,0.02376938,93591.0,93571.0,0.09088]
[1767714707220,0.19306049,93594.0,93572.0,0.19041672]
[1767714707221,0.02376938,93590.0,93572.0,0.19041672]
[1767714707404,0.02376938,93589.0,93572.0,0.19041672]
[1767714707610,0.02376938,93588.0,93572.0,0.19041672]
[1767714707809,0.02376938,93587.0,93572.0,0.19041672]
[1767714708011,0.02376938,93586.0,93572.0,0.19041672]
[1767714708209,0.09728764,93599.0,93575.0,0.19041672]
[1767714708408,0.02376213,93598.0,93581.0,0.0980931]
[1767714708617,0.02376213,93598.0,93571.0,0.09088]
[1767714708618,0.02376213,93597.0,93584.0,0.19041672]
[1767714708807,0.05919554,93600.0,93588.0,0.09232362]
[1767714709011,0.09088,93608.0,93588.0,0.09232362]
[1767714709406,0.09088,93608.0,93583.0,0.09088]
[1767714709407,0.14817822,93608.0,93593.0,0.09232362]
[1767714710525,0.14817822,93608.0,93587.0,0.0980931]
[1767714711114,0.09577285,93607.0,93583.0,0.09088]
[1767714711718,0.09577285,93607.0,93570.0,0.1217]
[1767714711719,0.09577285,93601.0,93574.0,0.0980931]
[1767714712019,0.09577285,93601.0,93569.0,0.00213747]
[1767714712020,0.09577285,93597.0,93569.0,0.00213747]
[1767714712222,0.09577285,93590.0,93569.0,0.09301747]
[1767714712519,0.09577285,93590.0,93552.0,0.21092]
[1767714712520,0.09728764,93580.0,93557.0,0.09088]
[1767714712727,0.09577285,93568.0,93546.0,0.09088]
[1767714712912,0.25664,93596.0,93540.0,0.6454131]
[1767714712913,0.09577285,93566.0,93540.0,0.0980931]
[1767714713122,0.09577285,93565.0,93541.0,0.09088]
[1767714713411,0.11366955,93565.0,93541.0,0.09088]
[1767714713816,0.09577285,93564.0,93541.0,0.09088]
[1767714714121,0.09577285,93564.0,93518.0,0.01077549]
[1767714714122,0.09577285,93560.0,93530.0,0.09092]
[1767714714424,0.09728764,93557.0,93530.0,0.09092]
[1767714714610,0.09577285,93552.0,93530.0,0.09092]
[1767714715217,0.09092,93554.0,93530.0,0.18324362]
[1767714715418,0.09092,93554.0,93531.0,0.09232362]
[1767714717718,0.09092,93554.0,93531.0,0.19041672]
[1767714717928,0.09092,93554.0,93534.0,0.09232362]
[1767714718226,0.09092,93554.0,93534.0,0.19041672]